bitfinex-derivatives/quotes_ETHF0:USTF0_20250828
["timestamp","ask_amount","ask_price","bid_price","bid_amount"]
[1756405644415,0.91277,4501.1,4501.0,0.4084]
[1756405644717,1.44569684,4501.1,4501.0,0.4084]
[1756405645414,0.91278,4500.9,4500.8,3.4013]
[1756405645614,0.91278,4500.9,4500.8,3.2078]
[1756405646308,4.91278,4500.9,4500.8,3.2078]
[1756405646509,0.39993,4500.4,4500.3,3.2078]
[1756405646817,0.91283,4500.4,4500.3,3.2078]
[1756405647020,0.3072,4501.2,4500.4,0.2149]
[1756405647219,0.91279,4500.8,4500.7,0.4084]
[1756405647612,0.39993,4500.4,4500.3,3.2078]
[1756405647919,0.91283,4500.4,4500.3,3.6162]
[1756405648121,0.5129,4500.4,4500.3,3.6162]
[1756405649618,0.5129,4501.3,4501.2,0.4084]
[1756405653024,0.91276,4501.2,4501.1,3.2078]
[1756405654724,0.91276,4501.2,4501.1,3.4013]
[1756405654925,0.91276,4501.2,4501.1,3.2078]
[1756405655620,0.91276,4501.2,4501.1,3.6162]
[1756405655923,0.91276,4501.2,4501.1,3.4013]
[1756405656119,0.91276,4501.2,4501.1,3.6168]
[1756405657724,3.5176,4501.8,4501.7,0.4193]
[1756405658021,4.24239073,4501.8,4501.7,0.20259738]
[1756405658223,4.64219073,4501.8,4501.7,0.20259738]
[1756405658620,4.73951073,4501.8,4501.1,3.2078]
[1756405658823,0.3098,4501.2,4501.1,3.2078]
[1756405659218,0.70965,4501.3,4501.1,3.2078]
[1756405659424,0.39985,4501.3,4501.1,3.2078]
[1756405659621,1.30934,4501.7,4501.1,3.2078]
[1756405659815,0.90226,4501.2,4501.1,3.2078]
[1756405663730,0.39986,4501.2,4501.1,3.2078]
[1756405663928,0.90226,4501.2,4501.1,3.2078]
[1756405664430,0.70966,4501.2,4501.1,3.2078]
[1756405664922,0.39986,4501.2,4501.1,3.2078]
[1756405665124,0.39984,4501.4,4501.1,3.2078]
[1756405665323,0.39984,4501.5,4501.1,3.2078]
[1756405665519,0.39984,4501.4,4501.1,3.2078]
[1756405665730,0.39984,4501.5,4501.1,3.60766]
[1756405666026,0.3998,4501.9,4501.1,3.42995]
[1756405666227,0.70959,4502.0,4501.8,3.2078]
[1756405667125,0.39979,4502.0,4501.8,3.2078]
[1756405667320,0.3098,4502.5,4501.8,3.2078]
[1756405667525,0.3098,4501.9,4501.8,3.2078]
[1756405667726,0.5024,4501.9,4501.8,3.2078]
[1756405671935,0.39979,4502.0,4501.8,3.2078]
[1756405672439,0.70959,4502.0,4501.8,3.2078]
[1756405672626,0.3098,4501.9,4501.8,3.2078]
[1756405674132,0.39979,4502.0,4501.8,3.2078]
[1756405674628,0.70959,4502.0,4501.8,3.2078]
[1756405674829,0.59239,4502.0,4501.8,3.2078]
[1756405675137,0.39979,4502.0,4501.8,3.2078]
[1756405675335,0.70959,4502.0,4501.8,3.2078]
[1756405675729,0.39979,4502.0,4501.8,3.2078]
[1756405675931,0.3098,4501.9,4501.8,3.2078]
[1756405676836,0.39979,4502.0,4501.8,3.2078]
[1756405677732,0.70959,4502.0,4501.8,3.2078]
[1756405677927,0.3098,4501.9,4501.8,3.2078]
[1756405678528,0.5024,4501.9,4501.8,3.2078]
[1756405682140,0.90219,4501.9,4501.8,3.2078]
[1756405684843,0.70959,4501.9,4501.8,3.2078]
[1756405685039,0.39978,4502.1,4501.8,3.2078]
[1756405685240,0.70959,4502.0,4501.8,3.2078]
[1756405685745,0.5024,4501.9,4501.8,3.2078]
[1756405689154,0.39978,4502.1,4501.8,3.2078]
[1756405689743,0.39976,4502.3,4501.8,3.6076]
[1756405689939,0.39975,4502.5,4502.0,0.39978]
[1756405690248,0.99932,4502.7,4501.8,3.6076]
[1756405690447,0.189,4502.5,4501.8,3.6076]
[1756405690642,0.39978,4502.1,4501.8,3.6076]
[1756405690837,0.39979,4502.0,4501.8,3.2078]
[1756405691245,3.2078,4505.5,4502.7,0.2084]
[1756405691544,3.2078,4507.6,4505.0,3.2078]
[1756405691747,0.99813,4508.1,4506.1,3.2078]
[1756405691748,0.39937,4506.7,4506.1,3.2078]
[1756405692048,3.79743607,4506.2,4506.1,3.2078]
[1756405692447,0.58844,4506.0,4505.8,3.2078]
[1756405692646,0.58844,4506.0,4505.9,0.34689917]
[1756405692847,0.189,4506.0,4505.9,0.34689917]
[1756405693352,4.4907,4506.0,4505.9,0.34689917]
[1756405693653,0.20044412,4506.0,4505.2,0.79137653]
[1756405693848,0.3017,4505.8,4505.2,0.79137653]
[1756405694045,0.20044412,4505.7,4505.3,0.79137653]
[1756405694246,0.01368396,4505.5,4505.3,0.79137653]
[1756405694445,0.58849,4505.3,4505.1,0.79137653]
[1756405694651,0.89021,4505.1,4505.0,0.79137653]
[1756405694852,0.71851204,4505.1,4505.0,0.79137653]
[1756405695048,0.41681204,4505.1,4504.9,0.79137653]
[1756405695250,0.90166412,4505.0,4504.9,0.79137653]
[1756405695446,0.90166412,4505.0,4504.8,0.79137653]
[1756405695643,0.20044412,4504.9,4504.8,0.79137653]
[1756405695844,0.39955,4504.7,4504.6,3.2078]
[1756405696049,1.10102385,4504.7,4504.6,3.2078]
[1756405696858,1.10102385,4504.7,4503.6,40.8]
[1756405696859,0.4907,4504.2,4504.1,0.79137653]
[1756405697053,0.23814177,4504.2,4503.7,0.79137653]
[1756405697254,0.21077385,4504.1,4503.7,0.79137653]
[1756405697555,0.21077385,4504.0,4503.6,3.99917653]
[1756405697753,0.61039385,4503.9,4503.6,3.99917653]
[1756405697959,0.61040385,4503.8,4503.6,3.99917653]
[1756405698162,0.21077385,4503.7,4503.6,3.99917653]
[1756405698560,0.21077385,4503.7,4503.6,3.2078]
[1756405699159,0.23814177,4503.7,4503.6,3.2078]
[1756405702463,0.42714177,4503.7,4503.6,3.2078]
[1756405702762,0.39968,4503.2,4503.1,3.2078]
[1756405702968,0.61045385,4503.2,4503.1,3.2078]
[1756405703160,0.63782177,4503.2,4503.1,3.2078]
[1756405705671,1.12852177,4503.2,4503.1,3.2078]
[1756405705866,1.12852177,4503.2,4503.1,3.99917653]
[1756405706268,1.1284144,4503.2,4503.1,3.99917653]
[1756405706768,1.12844565,4503.2,4503.1,3.99917653]
[1756405707466,1.12844565,4503.2,4503.0,0.79137653]
[1756405707668,0.3997,4503.0,4502.8,0.79137653]
[1756405707972,0.89041,4502.8,4502.7,0.79137653]
[1756405708162,1.12847565,4502.8,4502.7,0.79137653]
[1756405708362,0.3017,4502.7,4502.6,0.79137653]
[1756405708564,0.58875,4502.4,4502.3,0.79137653]
[1756405708760,0.89047,4502.2,4502.1,0.79137653]
[1756405708959,0.21069773,4502.2,4502.1,0.79137653]
[1756405709162,3.2078,4503.0,4502.1,4.0]
[1756405709464,0.3997,4503.0,4502.7,3.2078]
[1756405709665,0.39969,4503.1,4502.7,3.99832292]
[1756405709867,0.39969,4503.1,4502.7,4.39804292]
[1756405710066,0.39969,4503.1,4502.8,0.79052292]
[1756405710267,0.3997,4503.0,4502.8,0.79052292]
[1756405711565,0.3997,4503.0,4502.9,0.79052292]
[1756405712360,0.7014,4503.0,4502.9,0.79052292]
[1756405714373,0.39971,4502.9,4502.7,4.79358689]
[1756405714571,0.39964,4503.7,4502.8,6.18535689]
[1756405714768,3.5095,4503.8,4503.4,3.60746]
[1756405714769,0.39963,4503.8,4503.4,3.60746]
[1756405714970,0.39963,4503.8,4503.6,1.18592552]
[1756405715272,0.39963,4503.8,4503.6,1.58556552]
[1756405715474,0.39963,4503.8,4503.6,0.39964]
[1756405716172,0.39963,4503.8,4503.7,0.2441]
[1756405717766,0.3996,4504.2,4504.1,0.1502]
[1756405717973,0.3996,4504.2,4504.1,1.43113863]
[1756405718277,0.39958,4504.4,4504.3,0.2441]
[1756405718474,3.5621,4504.9,4504.3,0.64368]
[1756405718675,0.94584,4504.8,4504.7,0.83780106]
[1756405718875,0.94584,4504.8,4504.7,0.2441]
[1756405719077,3.2078,4504.9,4504.7,0.94180142]
[1756405719375,3.2078,4504.9,4504.8,1.03570142]
[1756405719671,0.3543,4505.7,4505.6,0.39946]
[1756405719873,4.15353,4506.0,4505.9,0.2441]
[1756405720078,0.59145,4505.8,4505.7,1.18709412]
[1756405720277,0.94575,4505.8,4505.7,1.18709412]
[1756405720881,0.5463,4505.7,4505.6,1.18709412]
[1756405721575,0.39947,4505.6,4505.5,1.18709412]
[1756405721880,0.5463,4505.4,4505.3,0.79197137]
[1756405722374,0.39949,4505.3,4505.1,1.18709412]
[1756405722579,0.192,4505.2,4505.1,1.33729412]
[1756405722774,0.192,4505.2,4505.1,1.43119412]
[1756405722775,0.5463,4505.2,4505.1,1.43119412]
[1756405723182,0.3543,4505.6,4505.1,1.43119412]
[1756405723377,0.94577,4505.6,4505.5,1.03630255]
[1756405723574,0.94577,4505.6,4505.5,0.2441]
[1756405723769,0.94577,4505.6,4505.5,1.03631225]
[1756405723974,4.94577,4505.6,4505.4,0.79221225]
[1756405724176,0.5463,4505.5,4505.4,0.79221225]
[1756405724783,0.56105192,4505.5,4505.4,0.79221225]
[1756405724978,0.56105192,4505.5,4505.4,0.94241225]
[1756405725278,0.56105192,4505.5,4505.4,0.2441]
[1756405725580,0.41423192,4505.5,4505.0,1.83617239]
[1756405725880,0.3543,4505.4,4505.3,0.21454808]
[1756405726478,3.2078,4506.5,4505.3,0.13544808]
[1756405726673,0.3543,4506.3,4505.6,1.31440712]
[1756405726876,3.2078,4506.5,4506.1,0.1266]
[1756405726877,0.96225153,4506.2,4506.1,0.1266]
[1756405727379,0.59143,4506.0,4505.9,0.7918434]
[1756405727575,0.94573,4506.0,4505.9,0.9184434]
[1756405727777,0.94573,4506.0,4505.9,0.9975434]
[1756405728376,0.94573,4506.0,4505.9,0.99690789]
[1756405728972,0.5463,4506.0,4505.9,0.99690789]
[1756405729186,0.01654153,4506.2,4506.0,0.39943]
[1756405729482,0.01654153,4506.2,4506.1,4.20455956]
[1756405729983,0.01654153,4506.2,4506.1,3.4135]
[1756405731378,0.01654153,4506.2,4506.1,7.4135]
[1756405731681,0.39935,4507.0,4506.9,0.1002]
[1756405731881,0.39935,4507.0,4506.9,3.3706]
[1756405732082,1.35236,4508.4,4506.9,8.39188748]
[1756405732385,0.94555,4508.0,4507.9,0.1002]
[1756405732579,0.9981,4508.2,4507.7,3.2078]
[1756405732580,0.94557,4507.8,4507.7,3.2078]
[1756405732884,0.94557,4507.8,4507.2,0.0626]
[1756405732885,0.94559,4507.6,4507.5,0.59191787]
[1756405733580,0.5463,4507.5,4507.4,0.69211787]
[1756405733779,0.5463,4507.5,4507.4,0.59191787]
[1756405733981,0.75361,4507.4,4507.2,0.59191787]
[1756405734185,0.5463,4507.3,4507.2,0.59191787]
[1756405734480,0.39933,4507.2,4507.1,3.2078]
[1756405734682,0.192,4506.9,4506.8,0.59082847]
[1756405734887,0.94566,4506.8,4506.7,0.59082847]
[1756405735277,0.94566,4506.8,4505.5,0.39948]
[1756405735278,0.5463,4506.7,4506.6,0.59082847]
[1756405735477,0.5914,4506.4,4506.3,0.59082847]
[1756405735777,0.39942,4506.2,4506.1,0.59082847]
[1756405736077,0.9458,4505.3,4505.2,3.2078]
[1756405736482,0.9458,4505.3,4505.2,3.89882847]
[1756405736685,0.96759396,4505.3,4505.2,3.89882847]
[1756405737284,0.96759396,4505.3,4505.2,3.96142847]
[1756405738090,0.96759396,4505.3,4505.2,3.89882847]
[1756405738393,0.96759396,4505.3,4505.2,3.308]
[1756405738683,0.02179396,4505.3,4505.2,7.3706]
[1756405739089,0.02179396,4505.3,4505.2,3.3706]
[1756405739283,0.56809396,4505.3,4505.2,4.55459964]
[1756405739883,0.37609396,4505.3,4505.2,4.55459964]
[1756405740080,0.02179396,4505.3,4505.2,4.55456373]
[1756405740286,0.02179396,4505.3,4505.2,3.3706]
[1756405740886,0.56809396,4505.3,4505.2,4.55507913]
[1756405741285,0.02179396,4505.3,4505.2,3.3706]
[1756405741688,0.56809396,4505.3,4505.2,3.308]
[1756405741994,0.56809396,4505.3,4505.2,3.2078]
[1756405742396,0.56809396,4505.3,4505.2,3.99812976]
[1756405742895,0.56809396,4505.3,4505.2,4.09832976]
[1756405743093,0.56809396,4505.3,4505.2,4.16092976]
[1756405743295,0.56809396,4505.3,4505.2,3.3706]
[1756405743693,0.56809396,4505.3,4505.2,3.2078]
[1756405744294,0.56809396,4505.3,4505.2,3.3706]
[1756405745198,0.56809396,4505.3,4505.2,4.55566611]
[1756405745600,0.56809396,4505.3,4505.2,3.308]
[1756405746396,0.56809396,4505.3,4505.2,4.54356611]
[1756405746596,0.56809396,4505.3,4505.2,4.39286611]
[1756405747301,0.56809396,4505.3,4505.2,4.52416611]
[1756405747599,0.56809396,4505.3,4505.2,4.47366611]
[1756405747789,0.02179396,4505.3,4505.2,4.47366611]
[1756405747994,0.02179396,4505.3,4505.2,4.52416611]
[1756405748194,0.56699396,4505.3,4505.2,4.52416611]
[1756405748394,0.56699396,4505.3,4505.2,3.3391]
[1756405748699,0.56699396,4505.3,4505.2,3.2886]
[1756405748899,0.56699396,4505.3,4505.2,3.2078]
[1756405749791,0.56699396,4505.3,4505.2,3.2886]
[1756405750792,0.02179396,4505.3,4505.2,3.3391]
[1756405751203,0.56699396,4505.3,4505.2,3.3391]
[1756405751904,0.02179396,4505.3,4505.2,3.3391]
[1756405752099,0.02179396,4505.3,4505.2,8.93117239]
[1756405752297,0.39944,4506.0,4505.7,0.042]
[1756405752493,0.39944,4506.0,4505.9,0.042]
[1756405752700,0.39944,4506.0,4505.9,0.0683]
[1756405752898,0.94464,4506.0,4505.9,0.0683]
[1756405753099,0.94464,4506.0,4505.9,0.042]
[1756405753897,0.3242,4505.6,4505.5,1.62719958]
[1756405754098,0.39945,4505.8,4505.7,0.042]
[1756405754305,0.39945,4505.8,4505.7,0.0683]
[1756405754903,0.72365,4505.8,4505.7,0.0683]
[1756405755105,0.94465,4505.8,4505.7,0.0683]
[1756405755703,0.39945,4505.8,4505.7,0.0683]
[1756405756298,0.39944,4505.9,4505.8,0.0683]
[1756405756498,3.532,4506.6,4505.9,0.42574]
[1756405756694,0.39938,4506.7,4506.5,1.25665551]
[1756405756901,0.39934,4507.1,4507.0,0.042]
[1756405757098,0.39934,4507.1,4507.0,0.0683]
[1756405757597,0.72354,4507.1,4507.0,0.0683]
[1756405757793,0.94454,4507.1,4507.0,0.0683]
[1756405757997,0.94454,4507.1,4507.0,0.042]
[1756405758801,0.3242,4507.0,4506.9,3.2078]
[1756405759198,0.5452,4507.0,4506.9,3.2078]
[1756405759403,0.39934,4507.1,4506.9,3.2498]
[1756405759606,0.39934,4507.1,4507.0,0.0683]
[1756405759897,0.72354,4507.1,4507.0,0.0683]
[1756405760096,0.94454,4507.1,4507.0,0.0683]
[1756405761299,0.94454,4507.1,4507.0,0.042]
[1756405762709,0.62034,4507.1,4506.9,3.2078]
[1756405762904,0.3242,4507.0,4506.9,3.2078]
[1756405763101,0.5452,4507.0,4506.9,3.2078]
[1756405763496,0.39934,4507.1,4506.9,3.2761]
[1756405763698,0.39934,4507.1,4507.0,0.0263]
[1756405763905,0.94454,4507.1,4507.0,0.0683]
[1756405764609,0.39934,4507.1,4507.0,0.0683]
[1756405764803,0.94454,4507.1,4507.0,0.0683]
[1756405765004,0.94454,4507.1,4507.0,0.042]
[1756405765208,0.94454,4507.1,4506.9,3.2078]
[1756405765209,0.62034,4507.1,4506.9,3.2078]
[1756405765508,0.5452,4507.0,4506.9,3.2078]
[1756405768504,0.5452,4507.0,4506.9,4.39430962]
[1756405770611,0.39935,4506.9,4506.8,1.18650962]
[1756405770807,0.94455,4506.9,4506.8,0.7905703]
[1756405771516,0.39937,4506.7,4506.6,0.7905703]
[1756405771713,0.5452,4506.6,4506.5,0.7905703]
[1756405773012,0.94458,4506.6,4506.5,0.7905703]
[1756405774213,0.72359,4506.5,4506.4,3.2078]
[1756405774513,0.94459,4506.5,4506.4,3.2078]
[1756405774707,0.39941,4506.3,4506.2,1.18650962]
[1756405774912,0.94461,4506.3,4506.2,1.18650962]
[1756405775318,0.62043,4506.0,4505.9,3.2498]
[1756405775511,0.62043,4506.0,4505.9,3.2761]
[1756405775512,0.94463,4506.0,4505.9,3.2761]
[1756405776108,0.94463,4506.0,4505.9,3.2498]
[1756405777115,0.94463,4506.0,4505.9,3.2078]
[1756405779225,0.94463,4506.0,4505.9,3.2346]
[1756405779426,0.94463,4506.0,4505.9,3.2513]
[1756405782725,0.39943,4506.1,4505.9,3.2346]
[1756405783023,0.99847,4506.6,4505.9,3.2346]
[1756405783024,0.63113,4506.0,4505.9,3.2346]
[1756405783218,0.96703,4506.0,4505.9,3.2346]
[1756405783419,0.96703,4506.0,4505.9,3.2513]
[1756405784729,0.39944,4505.9,4505.8,1.58506968]
[1756405784926,0.5676,4505.8,4505.5,0.0167]
[1756405785226,0.96707,4505.6,4505.5,0.0435]
[1756405785930,0.39948,4505.5,4505.4,3.2078]
[1756405786228,0.96708,4505.5,4505.4,3.2078]
[1756405786530,0.96708,4505.5,4505.4,3.2346]
[1756405786927,0.39948,4505.5,4505.4,3.2513]
[1756405787621,3.2078,4506.3,4505.4,3.2513]
[1756405787926,0.73529,4506.5,4506.1,0.39942]
[1756405788126,0.39942,4506.2,4506.0,1.58506968]
[1756405788321,0.39942,4506.2,4505.9,5.19230968]
[1756405788525,0.39941,4506.4,4505.9,5.19230968]
[1756405788724,0.3359,4506.5,4506.3,0.39941]
[1756405788932,3.94306,4506.8,4506.4,0.3994]
[1756405789229,3.94306,4506.8,4506.5,1.18818735]
[1756405789431,3.94306,4506.8,4506.5,1.58757735]
[1756405790128,0.39937,4506.7,4506.5,1.18818735]
[1756405790327,0.39936,4506.9,4506.5,4.39598735]
[1756405790522,0.73526,4506.9,4506.6,1.18818735]
[1756405790731,0.73524,4507.1,4506.7,0.39937]
[1756405790932,0.73524,4507.1,4506.9,1.18818735]
[1756405791130,0.63104,4507.1,4507.0,1.18818735]
[1756405791829,0.96694,4507.1,4507.0,1.18818735]
[1756405794636,0.96694,4507.1,4506.9,1.18818735]
[1756405794837,0.5676,4507.0,4506.9,1.18818735]
[1756405796229,0.5676,4507.0,4506.8,0.79260707]
[1756405796230,0.3359,4506.9,4506.8,0.79260707]
[1756405796430,0.96696,4506.8,4506.7,0.79260707]
[1756405797037,4.96696,4506.8,4506.7,0.79260707]
[1756405799236,0.96698,4506.6,4506.5,1.18818735]
[1756405799630,0.39939,4506.5,4506.4,1.18818735]
[1756405799836,0.967,4506.4,4506.3,1.18818735]
[1756405800333,0.967,4506.4,4505.3,1.98362706]
[1756405800334,0.6311,4506.4,4506.2,1.18818735]
[1756405800541,0.5676,4506.1,4506.0,1.18818735]
[1756405801340,0.39942,4506.2,4505.9,3.2078]
[1756405801636,0.3359,4506.6,4505.9,3.2078]
[1756405801835,0.39939,4506.5,4506.3,1.19036456]
[1756405802137,3.2078,4506.9,4506.3,1.19036456]
[1756405802437,0.3994,4506.4,4506.1,1.58506968]
[1756405802739,0.39941,4506.3,4506.1,1.58506968]
[1756405802936,0.5676,4506.8,4506.1,1.58506968]
[1756405803236,0.96697,4506.7,4506.6,1.19072346]
[1756405803834,0.5676,4506.6,4506.5,1.19072346]
[1756405804237,0.39942,4506.1,4506.0,1.58506968]
[1756405804434,0.39942,4506.1,4505.9,3.2078]
[1756405804435,0.63112,4506.1,4505.9,4.79286968]
[1756405804632,0.3359,4506.0,4505.9,4.79286968]
[1756405804838,0.5676,4506.0,4505.9,4.79286968]
[1756405805239,0.5676,4506.0,4505.9,1.58506968]
[1756405805440,0.96704,4505.9,4505.8,1.58506968]
[1756405805635,0.63114,4505.9,4505.7,1.58506968]
[1756405805835,0.73538,4505.5,4505.4,3.2078]
[1756405806036,0.39948,4505.5,4505.4,3.2078]
[1756405806231,0.70768,4505.5,4505.4,3.2078]
[1756405806540,0.92718,4505.5,4505.4,3.2078]
[1756405807137,0.92718,4505.5,4505.4,4.79544221]
[1756405808739,0.92718,4505.5,4505.4,3.2078]
[1756405808939,0.70768,4505.5,4505.4,3.2078]
[1756405809140,0.92718,4505.5,4505.4,3.2078]
[1756405811232,1.99722,4506.0,4504.6,31.978]
[1756405811233,0.92722,4505.0,4504.9,4.79544221]
[1756405811440,0.92722,4505.0,4504.9,3.2078]
[1756405812345,0.92722,4505.0,4504.9,4.39785079]
[1756405813039,0.3082,4504.9,4504.8,1.19005079]
[1756405813240,0.3082,4504.5,4504.4,4.39785079]
[1756405813439,0.70778,4504.4,4504.2,1.19005079]
[1756405813646,0.5277,4504.3,4504.2,1.19005079]
[1756405813942,0.5277,4504.1,4504.0,1.19005079]
[1756405814340,0.70781,4504.0,4503.9,1.19005079]
[1756405814543,0.92731,4504.0,4503.9,1.19005079]
[1756405814738,0.70785,4503.5,4503.4,1.19005079]
[1756405815139,0.39964,4503.7,4503.4,4.39785079]
[1756405815445,1.30717,4504.3,4503.4,3.2078]
[1756405815446,0.39965,4503.6,4503.4,3.2078]
[1756405816141,0.3082,4503.5,4503.4,3.2078]
[1756405816340,0.39968,4503.3,4503.1,1.19005079]
[1756405816537,0.39968,4503.3,4503.2,1.19005079]
[1756405816935,0.39964,4503.7,4503.2,1.19005079]
[1756405817138,3.2078,4504.4,4503.4,3.2078]
[1756405817342,3.516,4504.4,4503.6,1.19005079]
[1756405817539,3.516,4504.4,4503.7,1.19005079]
[1756405817837,0.39964,4503.7,4503.6,1.19005079]
[1756405818241,3.2078,4504.4,4503.5,1.19005079]
[1756405818444,0.3996,4504.2,4504.1,3.2078]
[1756405819047,0.6191,4504.2,4504.1,3.2078]
[1756405819345,0.9273,4504.2,4504.1,3.2078]
[1756405820440,0.99881,4505.0,4504.1,3.2078]
[1756405820743,0.39955,4504.7,4504.3,1.19005079]
[1756405820940,0.92728,4504.3,4504.1,4.39785079]
[1756405821143,0.3082,4504.2,4504.1,3.2078]
[1756405821744,0.5277,4504.2,4504.1,3.2078]
[1756405821943,0.3082,4504.2,4504.1,3.2078]
[1756405822438,0.39958,4504.3,4504.1,3.2078]
[1756405822837,0.39959,4504.3,4504.1,3.2078]
[1756405823037,0.3082,4504.9,4504.2,0.39959]
[1756405823234,0.3082,4504.9,4504.3,1.19005079]
[1756405823434,3.4273,4505.1,4504.3,1.19005079]
[1756405823647,0.39957,4504.5,4504.3,1.19005079]
[1756405823946,0.39958,4504.4,4504.2,1.19005079]
[1756405824246,0.39958,4504.4,4504.3,1.19005079]
[1756405826346,0.39958,4504.4,4504.2,0.39959]
[1756405826941,0.39955,4504.7,4504.5,0.39956]
[1756405827147,0.39954,4504.9,4504.7,0.39954]
[1756405827548,0.3082,4505.5,4504.6,3.2078]
[1756405827743,0.39952,4505.1,4504.9,1.58545725]
[1756405828047,0.39952,4505.1,4504.9,1.18592725]
[1756405828245,0.99863,4505.9,4505.0,0.39952]
[1756405828447,0.99863,4505.9,4504.6,4.79544221]
[1756405828448,0.3995,4505.3,4505.2,1.58550518]
[1756405828648,3.2078,4506.6,4505.7,0.39946]
[1756405828649,0.39945,4505.9,4505.7,0.39946]
[1756405828844,0.39945,4505.9,4505.7,3.60726]
[1756405829042,0.39942,4506.2,4506.0,0.39943]
[1756405829651,0.39943,4506.0,4505.9,1.18576515]
[1756405830144,0.99846,4506.7,4505.9,1.18576515]
[1756405830145,0.39938,4506.7,4506.5,0.39939]
[1756405830348,0.3994,4506.5,4506.3,3.6072]
[1756405831052,0.3994,4506.5,4506.3,4.79283131]
[1756405831251,0.3994,4506.5,4506.3,3.6072]
[1756405831644,0.5277,4506.4,4506.3,3.2078]
[1756405831842,0.3994,4506.5,4506.3,3.2078]
[1756405832042,0.39939,4506.5,4506.3,3.2078]
[1756405832852,0.70759,4506.5,4506.3,3.2078]
[1756405833746,0.39939,4506.5,4506.3,3.2078]
[1756405833950,0.70755,4506.9,4506.3,3.2078]
[1756405834259,0.39934,4507.1,4506.8,3.60716]
[1756405834553,0.39933,4507.3,4506.9,0.39935]
[1756405834747,0.92703,4507.2,4506.9,0.39935]
[1756405835144,0.39929,4507.6,4507.1,0.39933]
[1756405835354,0.3082,4507.7,4507.3,3.2078]
[1756405835655,0.3082,4507.6,4507.3,3.2078]
[1756405835849,0.3082,4507.5,4507.3,3.2078]
[1756405836052,0.533,4507.4,4507.3,3.2078]
[1756405838354,0.39929,4507.7,4507.3,3.2078]
[1756405838549,0.7163,4507.6,4507.3,3.2078]
[1756405838749,0.317,4507.6,4507.3,3.2078]
[1756405838949,0.317,4507.6,4507.3,3.60712]
[1756405839151,4.20582,4508.6,4507.3,3.60712]
[1756405839152,0.317,4508.5,4507.3,3.2078]
[1756405839351,0.93225,4508.1,4507.7,0.39928]
[1756405839551,0.39928,4507.8,4507.3,3.2078]
[1756405839752,0.533,4507.7,4507.3,3.2078]
[1756405839954,0.216,4507.4,4507.3,3.60712]
[1756405840155,0.533,4507.4,4507.3,3.2078]
[1756405840747,0.39929,4507.6,4507.3,3.2078]
[1756405840951,0.317,4507.5,4507.3,3.2078]
[1756405841157,0.39929,4507.6,4507.3,3.2078]
[1756405841353,0.39929,4507.6,4507.3,3.60712]
[1756405841557,0.39929,4507.7,4507.4,0.39931]
[1756405841760,0.39929,4507.6,4507.4,0.39931]
[1756405842058,0.317,4508.3,4507.4,0.39931]
[1756405842255,0.39929,4507.7,4507.4,0.39931]
[1756405842451,0.39929,4507.7,4507.5,0.3993]
[1756405842862,0.317,4508.3,4507.3,3.60711]
[1756405843162,0.3993,4507.5,4507.3,3.60711]
[1756405843459,0.3993,4507.5,4507.3,3.2078]
[1756405843660,0.317,4507.4,4507.3,3.2078]
[1756405843856,0.533,4507.4,4507.3,3.2078]
[1756405844357,0.317,4507.4,4507.3,3.2078]
[1756405844860,0.3993,4507.5,4507.3,3.2078]
[1756405846954,0.9323,4507.5,4507.3,3.2078]
[1756405847356,0.3993,4507.5,4507.3,3.2078]
[1756405848864,0.3993,4507.5,4507.3,3.60712]
[1756405852168,0.39927,4507.9,4507.7,0.39928]
[1756405852361,0.39927,4507.9,4507.8,3.2078]
[1756405852858,0.71627,4507.9,4507.8,3.2078]
[1756405853259,0.71627,4507.9,4507.8,3.60707]
[1756405853663,0.39927,4507.9,4507.8,3.60707]
[1756405853864,0.317,4508.4,4507.8,3.2078]
[1756405854066,0.71622,4508.4,4508.3,3.2078]
[1756405854265,0.93222,4508.4,4508.3,3.2078]
[1756405854765,0.39922,4508.4,4508.3,3.60703]
[1756405854969,0.216,4508.7,4508.4,0.39921]
[1756405855269,0.39921,4508.5,4508.4,0.39921]
[1756405855461,0.61521,4508.5,4508.3,3.2078]
[1756405855668,0.533,4508.4,4508.3,3.60703]
[1756405855866,0.39921,4508.5,4508.3,3.60703]
[1756405856369,0.39921,4508.5,4508.3,4.79266131]
[1756405856960,2.03524,4509.7,4508.3,8.39343131]
[1756405856961,0.39917,4509.0,4508.3,8.39343131]
[1756405857165,0.39916,4509.1,4508.9,3.2078]
[1756405857664,0.39916,4509.1,4508.9,3.60697]
[1756405857859,0.317,4509.2,4508.9,3.60697]
[1756405858064,0.93215,4509.2,4508.9,3.60697]
[1756405858262,0.533,4509.2,4509.0,0.39916]
[1756405858560,0.93215,4509.2,4509.1,1.18563131]
[1756405859158,0.216,4509.5,4509.1,1.18563131]
[1756405859365,0.93216,4509.1,4509.0,1.18563131]
[1756405860366,0.93219,4508.8,4508.7,1.18563131]
[1756405860573,0.61519,4508.8,4508.6,1.18563131]
[1756405860872,0.61519,4508.8,4508.7,1.18563131]
[1756405860873,0.39919,4508.8,4508.7,1.18563131]
[1756405861066,0.93219,4508.8,4508.7,1.18563131]
[1756405861262,0.39921,4508.5,4508.4,3.2078]
[1756405861666,0.71621,4508.5,4508.4,3.2078]
[1756405862171,0.39921,4508.5,4508.4,3.2078]
[1756405863371,0.317,4509.0,4508.4,3.2078]
[1756405863572,0.71617,4509.0,4508.9,4.39274025]
[1756405863772,0.39917,4509.0,4508.9,4.39274025]
[1756405864276,0.71617,4509.0,4508.9,3.2078]
[1756405865574,0.93217,4509.0,4508.9,3.2078]
[1756405865972,0.93217,4509.0,4508.9,4.39274025]
[1756405867176,0.99782,4509.5,4508.9,4.39274025]
[1756405867177,0.3054,4509.5,4508.9,4.39274025]
[1756405867379,0.03969,4509.7,4509.5,0.39912]
[1756405867573,0.03969,4509.7,4509.5,4.39912]